fUST/lending_fUST_20240605
["ID","MTS","AMOUNT","RATE_DAILY","PERIOD"]
[328555420,1717530453928,-500.0,0.00021917,2]
[328555421,1717530453948,-500.0,0.00021917,2]
[328555422,1717530453970,-500.0,0.00021917,2]
[328555423,1717530453989,-500.0,0.00021917,2]
[328555424,1717530454010,-500.0,0.00021917,2]
[328555425,1717530454030,-500.0,0.00021917,2]
[328555426,1717530454050,-500.0,0.00021917,2]
[328555427,1717530454075,-500.0,0.00021917,2]
[328555428,1717530454097,-500.0,0.00021917,2]
[328555429,1717530454119,-519.53615693,0.00021917,2]
[328555430,1717530454139,-500.0,0.00021917,2]
[328555431,1717530454160,-1000.0,0.00021917,2]
[328555432,1717530454180,-500.0,0.00021917,2]
[328555433,1717530454200,-562.23491687,0.00021917,2]
[328555434,1717530454223,-825.15,0.00021917,2]
[328555435,1717530454243,-500.0,0.00021917,2]
[328555436,1717530454263,-500.0,0.00021917,2]
[328555437,1717530454283,-500.0,0.00021917,2]
[328555438,1717530454303,-500.0,0.00021917,2]
[328555439,1717530454324,-500.0,0.00021917,2]
[328555440,1717530454344,-500.0,0.00021917,2]
[328555441,1717530454363,-520.59024968,0.00021917,2]
[328555442,1717530454382,-737.75,0.00021917,2]
[328555443,1717530454402,-500.0,0.00021917,2]
[328555444,1717530454421,-500.0,0.00021917,2]
[328555445,1717530454442,-500.0,0.00021917,2]
[328555446,1717530454462,-500.0,0.00021917,2]
[328555447,1717530454483,-500.0,0.00021917,2]
[328555448,1717530454504,-500.0,0.00021917,2]
[328555449,1717530454524,-1142.22,0.00021917,2]
[328555450,1717530454543,-500.0,0.00021917,2]
[328555451,1717530454563,-500.0,0.00021917,2]
[328555452,1717530454584,-500.0,0.00021917,2]
[328555453,1717530454607,-4803.87,0.00021917,2]
[328555454,1717530454626,-500.0,0.00021917,2]
[328555455,1717530454646,-500.0,0.00021917,2]
[328555456,1717530454667,-500.0,0.00021917,2]
[328555457,1717530454685,-500.0,0.00021917,2]
[328555458,1717530454705,-500.0,0.00021917,2]
[328555459,1717530454724,-576.8916337,0.00021917,2]
[328555460,1717530454744,-500.0,0.00021917,2]
[328555461,1717530454765,-4439.49,0.00021917,2]
[328555462,1717530454784,-338.5007288,0.00021917,2]
[328555463,1717530454804,-500.0,0.00021917,2]
[328555464,1717530454824,-500.0,0.00021917,2]
[328555465,1717530454843,-500.0,0.00021917,2]
[328555466,1717530454862,-500.0,0.00021917,2]
[328555467,1717530454880,-500.0,0.00021917,2]
[328555468,1717530454900,-1873.71,0.00021917,2]
[328555469,1717530454921,-500.0,0.00021917,2]
[328555470,1717530454940,-500.0,0.00021917,2]
[328555471,1717530454959,-500.0,0.00021917,2]
[328555472,1717530454979,-500.0,0.00021917,2]
[328555473,1717530454999,-500.0,0.00021917,2]
[328555474,1717530455017,-372.6887741,0.00021917,2]
[328555475,1717530455037,-500.0,0.00021917,2]
[328555476,1717530455056,-500.0,0.00021917,2]
[328555477,1717530455075,-1023.49,0.00021917,2]
[328555478,1717530455097,-500.0,0.00021917,2]
[328555479,1717530455186,-500.0,0.00021917,2]
[328555480,1717530455207,-500.0,0.00021917,2]
[328555481,1717530455226,-500.0,0.00021917,2]
[328555482,1717530455247,-5714.81,0.00021917,2]
[328555483,1717530455266,-636.47,0.00021917,2]
[328555484,1717530455286,-500.0,0.00021917,2]
[328555485,1717530455305,-553.66,0.00021917,2]
[328555486,1717530455323,-500.0,0.00021917,2]
[328555487,1717530455344,-500.0,0.00021917,2]
[328555488,1717530455364,-500.0,0.00021917,2]
[328555489,1717530455383,-500.0,0.00021917,2]
[328555490,1717530455402,-500.0,0.00021917,2]
[328555491,1717530455423,-500.0,0.00021917,2]
[328555492,1717530455442,-500.0,0.00021917,2]
[328555493,1717530455462,-500.0,0.00021917,2]
[328555494,1717530455481,-500.0,0.00021917,2]
[328555495,1717530455503,-599.56,0.00021917,2]
[328555496,1717530455523,-500.0,0.00021917,2]
[328555497,1717530455543,-500.0,0.00021917,2]
[328555498,1717530455563,-500.0,0.00021917,2]
[328555499,1717530455584,-500.0,0.00021917,2]
[328555500,1717530455607,-500.0,0.00021917,2]
[328555501,1717530455627,-500.0,0.00021917,2]
[328555502,1717530455647,-500.0,0.00021917,2]
[328555503,1717530455672,-500.0,0.00021917,2]
[328555504,1717530455692,-500.0,0.00021917,2]
[328555505,1717530455713,-779.91,0.00021917,2]
[328555506,1717530455733,-500.0,0.00021917,2]
[328555507,1717530455753,-990.37,0.00021917,2]
[328555508,1717530455774,-500.0,0.00021917,2]
[328555509,1717530455794,-500.0,0.00021917,2]
[328555510,1717530455813,-500.0,0.00021917,2]
[328555511,1717530455832,-500.0,0.00021917,2]
[328555512,1717530455851,-500.0,0.00021917,2]
[328555513,1717530455870,-500.0,0.00021917,2]
[328555514,1717530455890,-1660.07,0.00021917,2]
[328555515,1717530455910,-500.0,0.00021917,2]
[328555516,1717530455935,-536.45254485,0.00021917,2]
[328555517,1717530455972,-500.0,0.00021917,2]
[328555518,1717530455999,-500.0,0.00021917,2]
[328555519,1717530456030,-500.0,0.00021917,2]
[328555520,1717530456060,-1198.65,0.00021917,2]
[328555521,1717530456089,-500.0,0.00021917,2]
[328555522,1717530456121,-500.0,0.00021917,2]
[328555523,1717530456148,-523.19,0.00021917,2]
[328555524,1717530456178,-500.0,0.00021917,2]
[328555525,1717530456206,-526.6,0.00021917,2]
[328555526,1717530456236,-500.0,0.00021917,2]
[328555527,1717530456262,-500.0,0.00021917,2]
[328555528,1717530456287,-500.0,0.00021917,2]
[328555529,1717530456314,-500.0,0.00021917,2]
[328555530,1717530456340,-500.0,0.00021917,2]
[328555531,1717530456366,-830.94,0.00021917,2]
[328555532,1717530456390,-723.8,0.00021917,2]
[328555533,1717530456414,-610.6406243,0.00021917,2]
[328555534,1717530456441,-723.8,0.00021917,2]
[328555535,1717530456467,-723.8,0.00021917,2]
[328555536,1717530456491,-723.8,0.00021917,2]
[328555537,1717530456517,-723.8,0.00021917,2]
[328555538,1717530456543,-425.68,0.00021917,2]
[328555539,1717530456571,-723.8,0.00021917,2]
[328555540,1717530456596,-723.8,0.00021917,2]
[328555541,1717530456623,-723.8,0.00021917,2]
[328555542,1717530456649,-723.8,0.00021917,2]
[328555543,1717530456675,-723.8,0.00021917,2]
[328555544,1717530456699,-723.8,0.00021917,2]
[328555545,1717530456732,-723.8,0.00021917,2]
[328555546,1717530456757,-723.8,0.00021917,2]
[328555547,1717530456782,-723.8,0.00021917,2]
[328555548,1717530456805,-723.8,0.00021917,2]
[328555549,1717530456825,-500.0,0.00021917,2]
[328555550,1717530456845,-723.8,0.00021917,2]
[328555551,1717530456983,-500.0,0.00021917,2]
[328555552,1717530457009,-723.8,0.00021917,2]
[328555553,1717530457029,-723.8,0.00021917,2]
[328555554,1717530457049,-723.8,0.00021917,2]
[328555555,1717530457070,-723.8,0.00021917,2]
[328555556,1717530457089,-723.8,0.00021917,2]
[328555557,1717530457111,-723.8,0.00021917,2]
[328555558,1717530457130,-723.8,0.00021917,2]
[328555559,1717530457154,-723.89379325,0.00021917,2]
[328555560,1717530457178,-500.0,0.00021917,2]
[328555561,1717530457197,-617.68,0.00021917,2]
[328555562,1717530457218,-500.0,0.00021917,2]
[328555563,1717530457238,-517.36,0.00021917,2]
[328555564,1717530457258,-517.36,0.00021917,2]
[328555565,1717530457277,-603.92724432,0.00021917,2]
[328555566,1717530457298,-1525.05,0.00021917,2]
[328555567,1717530457318,-517.36,0.00021917,2]
[328555568,1717530457337,-517.36,0.00021917,2]
[328555569,1717530457357,-517.36,0.00021917,2]
[328555570,1717530457377,-517.36,0.00021917,2]
[328555571,1717530457397,-500.0,0.00021917,2]
[328555572,1717530457418,-517.36,0.00021917,2]
[328555573,1717530457438,-517.36,0.00021917,2]
[328555574,1717530457458,-517.36,0.00021917,2]
[328555575,1717530457479,-517.36,0.00021917,2]
[328555576,1717530457499,-517.36,0.00021917,2]
[328555577,1717530457520,-517.36,0.00021917,2]
[328555578,1717530457541,-500.0,0.00021917,2]
[328555579,1717530457561,-517.36,0.00021917,2]
[328555580,1717530457580,-517.36,0.00021917,2]
[328555581,1717530457599,-517.36,0.00021917,2]
[328555582,1717530457619,-517.36,0.00021917,2]
[328555583,1717530457640,-517.36,0.00021917,2]
[328555584,1717530457659,-517.36,0.00021917,2]
[328555585,1717530457680,-517.36,0.00021917,2]
[328555586,1717530457699,-517.36,0.00021917,2]
[328555587,1717530457719,-517.36,0.00021917,2]
[328555588,1717530457739,-517.36,0.00021917,2]
[328555589,1717530457758,-517.36,0.00021917,2]
[328555590,1717530457779,-517.45075738,0.00021917,2]
[328555591,1717530457799,-500.0,0.00021917,2]
[328555592,1717530457819,-500.0,0.00021917,2]
[328555593,1717530457839,-500.0,0.00021917,2]
[328555594,1717530457861,-862.410582,0.00021917,2]
[328555595,1717530457883,-862.410582,0.00021917,2]
[328555596,1717530457903,-500.0,0.00021917,2]
[328555597,1717530457923,-500.0,0.00021917,2]
[328555598,1717530457942,-500.0,0.00021917,2]
[328555599,1717530457963,-500.0,0.00021917,2]
[328555600,1717530457982,-200.0,0.00021917,2]
[328555601,1717530458002,-447.1224932,0.00021917,2]
[328555602,1717530458022,-3543.39,0.00021917,2]
[328555603,1717530458041,-594.77495063,0.00021917,2]
[328555604,1717530458061,-500.0,0.00021917,2]
[328555605,1717530458081,-1809.1,0.00021917,2]
[328555606,1717530458103,-500.0,0.00021917,2]
[328555607,1717530458124,-166.666666,0.00021918,2]
[328555608,1717530458143,-15388.167471,0.00021918,2]
[328555609,1717530458162,-10388.0851109,0.00021918,2]
[328555610,1717530458185,-154.95351395,0.00022,2]
[328555611,1717530458203,-477.0,0.00022,2]
[328555612,1717530458224,-261.2,0.00022051,5]
[328555613,1717530458243,-610.453,0.00022082,2]
[328555614,1717530458265,-211.023,0.00022082,2]
[328555615,1717530458285,-474.28774219,0.00022096,2]
[328555616,1717530458304,-624.04205326,0.000221,2]
[328555617,1717530458323,-500.0,0.00022191,2]
[328555618,1717530458342,-616.91,0.00022191,2]
[328555619,1717530458362,-325.33473883,0.00022191,2]
[328555620,1717530458381,-167.22594915,0.00022191,2]
[328555621,1717530458401,-500.0,0.00022191,2]
[328555622,1717530458420,-434.85688956,0.00022191,2]
[328555623,1717530458440,-500.0,0.00022191,2]
[328555624,1717530458462,-504.69195701,0.00022191,2]
[328555625,1717530458483,-500.0,0.00022191,2]
[328555626,1717530458502,-500.0,0.00022191,2]
[328555627,1717530458522,-500.0,0.00022191,2]
[328555628,1717530458543,-500.0,0.00022191,2]
[328555629,1717530458567,-500.0,0.00022191,2]
[328555630,1717530458587,-504.41301189,0.00022191,2]
[328555631,1717530458606,-502.47478464,0.00022191,2]
[328555632,1717530458626,-500.0,0.00022191,2]
[328555633,1717530458648,-500.0,0.00022191,2]
[328555634,1717530458668,-500.0,0.00022191,2]
[328555635,1717530458688,-500.0,0.00022191,2]
[328555636,1717530458707,-500.0,0.00022191,2]
[328555637,1717530458727,-500.0,0.00022191,2]
[328555638,1717530458747,-500.0,0.00022191,2]
[328555639,1717530458769,-500.0,0.00022191,2]
[328555640,1717530458789,-323.71,0.00022191,2]
[328555641,1717530458809,-500.0,0.00022191,2]
[328555642,1717530458829,-500.0,0.00022191,2]
[328555643,1717530458849,-500.0,0.00022191,2]
[328555644,1717530458869,-500.0,0.00022191,2]
[328555645,1717530458889,-500.0,0.00022191,2]
[328555646,1717530458909,-500.0,0.00022191,2]
[328555647,1717530458931,-1009.75,0.00022191,2]
[328555648,1717530458953,-408.06,0.00022191,2]
[328555649,1717530458974,-500.0,0.00022191,2]
[328555650,1717530458994,-247.77,0.00022191,2]
[328555651,1717530459014,-161.55085963,0.00022191,2]
[328555652,1717530459040,-500.0,0.00022191,2]
[328555653,1717530459062,-500.0,0.00022191,2]
[328555654,1717530459084,-734.87,0.00022191,2]
[328555655,1717530459109,-500.0,0.00022191,2]
[328555656,1717530459131,-792.37,0.00022191,2]
[328555657,1717530459153,-500.0,0.00022191,2]
[328555658,1717530459178,-500.0,0.00022191,2]
[328555659,1717530459199,-575.84,0.00022191,2]
[328555660,1717530459306,-538.97,0.00022191,2]
[328555661,1717530459329,-500.0,0.00022191,2]
[328555662,1717530459350,-500.0,0.00022191,2]
[328555663,1717530459372,-505.12044019,0.00022191,2]
[328555664,1717530459393,-473.9081828,0.00022191,2]
[328555665,1717530459418,-647.44,0.00022191,2]
[328555666,1717530459443,-574.49,0.00022191,2]
[328555667,1717530459463,-500.0,0.00022191,2]
[328555668,1717530459484,-500.0,0.00022191,2]
[328555669,1717530459508,-500.0,0.00022191,2]
[328555670,1717530459528,-517.91,0.00022191,2]
[328555671,1717530459550,-535.08,0.00022191,2]
[328555672,1717530459570,-500.0,0.00022191,2]
[328555673,1717530459590,-500.0,0.00022191,2]
[328555674,1717530459611,-500.0,0.00022191,2]
[328555675,1717530459632,-500.0,0.00022191,2]
[328555676,1717530459652,-500.0,0.00022191,2]
[328555677,1717530459674,-500.0,0.00022191,2]
[328555678,1717530459695,-500.0,0.00022191,2]
[328555679,1717530459716,-500.0,0.00022191,2]
[328555680,1717530459736,-500.0,0.00022191,2]
[328555681,1717530459758,-500.0,0.00022191,2]
[328555682,1717530459779,-500.0,0.00022191,2]
[328555683,1717530459800,-500.0,0.00022191,2]
[328555684,1717530459821,-500.0,0.00022191,2]
[328555685,1717530459843,-500.0,0.00022191,2]
[328555686,1717530459864,-500.0,0.00022191,2]
[328555687,1717530459885,-500.0,0.00022191,2]
[328555688,1717530459907,-500.0,0.00022191,2]
[328555689,1717530459929,-500.0,0.00022191,2]
[328555690,1717530459950,-250.0,0.00022191,2]
[328555691,1717530459971,-500.0,0.00022191,2]
[328555692,1717530459993,-500.0,0.00022191,2]
[328555693,1717530460014,-688.32,0.00022191,2]
[328555694,1717530460035,-500.0,0.00022191,2]
[328555695,1717530460056,-500.0,0.00022191,2]
[328555696,1717530460078,-500.0,0.00022191,2]
[328555697,1717530460101,-500.0,0.00022191,2]
[328555698,1717530460125,-43.37911113,0.00022191,2]
[328555749,1717530633367,-674.83,0.00019817,2]
[328555750,1717530633421,-111.14878818,0.00019817,2]
[328555751,1717530633432,-195.9,0.00020784,3]
[328555752,1717530633442,-195.9,0.00021387,5]
[328555753,1717530633451,-1454.67178386,0.00021406,3]
[328555754,1717530633462,-162.93661136,0.00021407,2]
[328555755,1717530633472,-1353.96157468,0.00021407,2]
[328555756,1717530633482,-7365.6072277,0.00021408,2]
[328555757,1717530633491,-154.93802479,0.00021408,2]
[328555758,1717530633501,-3770.04348106,0.00021409,2]
[328555759,1717530633511,-1121.01381472,0.00021817,2]
[328555760,1717530633520,-3770.04348106,0.00021874,2]
[328555761,1717530633530,-525.9388457,0.00021917,2]
[328555762,1717530633539,-500.0,0.00021917,2]
[328555763,1717530633549,-500.0,0.00021917,2]
[328555764,1717530633558,-500.0,0.00021917,2]
[328555765,1717530633568,-500.0,0.00021917,2]
[328555766,1717530633578,-500.0,0.00021917,2]
[328555767,1717530633588,-500.0,0.00021917,2]
[328555768,1717530633597,-500.0,0.00021917,2]
[328555769,1717530633607,-4603.71,0.00021917,2]
[328555770,1717530633616,-169.11403742,0.00021917,2]
[328555771,1717530633627,-500.0,0.00021917,2]
[328555772,1717530633772,-4275.34,0.00021917,2]
[328555773,1717530633790,-352.40790929,0.00021917,2]
[328555774,1717530633804,-147.59209071,0.00021917,2]
[328555775,1717530633813,-158.40790929,0.00021917,2]
[328555793,1717530638130,-341.59209071,0.00021917,2]
[328555794,1717530638143,-1266.65747579,0.00021917,2]
[328555795,1717530638155,-528.98252421,0.00021917,2]
[328555796,1717530638164,-500.0,0.00021917,2]
[328555797,1717530638174,-500.0,0.00021917,2]
[328555798,1717530638185,-500.0,0.00021917,2]
[328555799,1717530638194,-500.0,0.00021917,2]
[328555800,1717530638204,-500.0,0.00021917,2]
[328555801,1717530638213,-499.02569945,0.00021917,2]
[328555802,1717530638227,-0.97430055,0.00021917,2]
[328555803,1717530638236,-500.0,0.00021917,2]
[328555804,1717530638245,-500.0,0.00021917,2]
[328555805,1717530638255,-609.95,0.00021917,2]
[328555806,1717530638264,-500.0,0.00021917,2]
[328555807,1717530638273,-500.0,0.00021917,2]
[328555808,1717530638283,-5476.69,0.00021917,2]
[328555809,1717530638292,-925.6,0.00021917,2]
[328555810,1717530638301,-500.0,0.00021917,2]
[328555811,1717530638310,-500.0,0.00021917,2]
[328555812,1717530638321,-574.58,0.00021917,2]
[328555813,1717530638330,-500.0,0.00021917,2]
[328555814,1717530638339,-500.0,0.00021917,2]
[328555815,1717530638348,-500.0,0.00021917,2]
[328555816,1717530638358,-500.0,0.00021917,2]
[328555817,1717530638367,-747.42,0.00021917,2]
[328555818,1717530638376,-500.0,0.00021917,2]
[328555819,1717530638386,-949.1,0.00021917,2]
[328555820,1717530638395,-500.0,0.00021917,2]
[328555821,1717530638404,-500.0,0.00021917,2]
[328555822,1717530638414,-500.0,0.00021917,2]
[328555823,1717530638424,-1590.9,0.00021917,2]
[328555824,1717530638434,-500.0,0.00021917,2]
[328555825,1717530638443,-726.34,0.00021917,2]
[328555826,1717530638452,-500.0,0.00021917,2]
[328555827,1717530638462,-1148.7,0.00021917,2]
[328555828,1717530638471,-500.0,0.00021917,2]
[328555829,1717530638480,-500.0,0.00021917,2]
[328555830,1717530638490,-500.0,0.00021917,2]
[328555831,1717530638499,-673.63,0.00021917,2]
[328555832,1717530638509,-500.0,0.00021917,2]
[328555833,1717530638518,-501.4,0.00021917,2]
[328555834,1717530638528,-500.0,0.00021917,2]
[328555835,1717530638538,-166.666666,0.00021918,2]
[328555836,1717530638547,-195.9,0.00021989,5]
[328555837,1717530638557,-3770.04348106,0.00021992,2]
[328555838,1717530638566,-244.71127588,0.00022,2]
[328555839,1717530638577,-624.04205326,0.00022189,2]
[328555840,1717530638586,-500.0,0.00022189,2]
[328555841,1717530638595,-427.88255264,0.00022189,2]
[328555842,1717530638605,-500.0,0.00022189,2]
[328555843,1717530638615,-267.89101798,0.00022189,2]
[328555844,1717530638624,-414.57389483,0.00022189,2]
[328555845,1717530638634,-500.0,0.00022189,2]
[328555846,1717530638643,-306.65094057,0.00022189,2]
[328555847,1717530638652,-384.7309816,0.00022189,2]
[328555848,1717530638662,-299.68249368,0.00022189,2]
[328555849,1717530638671,-500.0,0.00022189,2]
[328555850,1717530638681,-252.03074998,0.00022189,2]
[328555851,1717530638690,-500.0,0.00022189,2]
[328555852,1717530638699,-500.0,0.00022189,2]
[328555853,1717530638709,-500.0,0.00022189,2]
[328555854,1717530638718,-500.0,0.00022189,2]
[328555855,1717530638727,-500.0,0.00022189,2]
[328555856,1717530638737,-338.48374435,0.00022189,2]
[328555857,1717530638747,-152.67757457,0.00022189,2]
[328555858,1717530638757,-500.0,0.00022189,2]
[328555859,1717530638766,-500.0,0.00022189,2]
[328555860,1717530638776,-500.0,0.00022189,2]
[328555861,1717530638786,-500.0,0.00022189,2]
[328555862,1717530638796,-500.0,0.00022189,2]
[328555863,1717530638806,-500.0,0.00022189,2]
[328555864,1717530638815,-500.0,0.00022189,2]
[328555865,1717530638826,-500.0,0.00022189,2]
[328555866,1717530638836,-500.0,0.00022189,2]
[328555867,1717530638846,-500.0,0.00022189,2]
[328555868,1717530638855,-500.0,0.00022189,2]
[328555869,1717530638864,-500.0,0.00022189,2]
[328555870,1717530638873,-500.0,0.00022189,2]
[328555871,1717530638883,-500.0,0.00022189,2]
[328555872,1717530638892,-500.0,0.00022189,2]
[328555873,1717530638994,-500.0,0.00022189,2]
[328555874,1717530639004,-500.0,0.00022189,2]
[328555875,1717530639014,-500.0,0.00022189,2]
[328555876,1717530639023,-500.0,0.00022189,2]
[328555877,1717530639032,-500.0,0.00022189,2]
[328555878,1717530639042,-500.0,0.00022189,2]
[328555879,1717530639052,-500.0,0.00022189,2]
[328555880,1717530639061,-500.0,0.00022189,2]
[328555881,1717530639071,-500.0,0.00022189,2]
[328555882,1717530639081,-500.0,0.00022189,2]
[328555883,1717530639090,-500.0,0.00022189,2]
[328555884,1717530639099,-500.0,0.00022189,2]
[328555885,1717530639109,-500.0,0.00022189,2]
[328555886,1717530639118,-500.0,0.00022189,2]
[328555887,1717530639128,-500.0,0.00022189,2]
[328555888,1717530639138,-500.0,0.00022189,2]
[328555889,1717530639152,-500.0,0.00022189,2]
[328555890,1717530639162,-500.0,0.00022189,2]
[328555891,1717530639172,-500.0,0.00022189,2]
[328555892,1717530639182,-500.0,0.00022189,2]
[328555893,1717530639194,-500.0,0.00022189,2]
[328555894,1717530639204,-500.0,0.00022189,2]
[328555895,1717530639214,-500.0,0.00022189,2]
[328555896,1717530639226,-456.62088887,0.00022191,2]
[328555897,1717530639237,-500.0,0.00022191,2]
[328555898,1717530639246,-500.0,0.00022191,2]
[328555899,1717530639256,-500.0,0.00022191,2]
[328555900,1717530639266,-627.8509082,0.00022191,2]
[328555901,1717530639276,-552.17,0.00022191,2]
[328555902,1717530639285,-214.71863226,0.00022191,2]
[328555903,1717530639295,-634.24,0.00022191,2]
[328555904,1717530639304,-500.0,0.00022191,2]
[328555905,1717530639314,-500.0,0.00022191,2]
[328555906,1717530639325,-500.0,0.00022191,2]
[328555907,1717530639334,-500.0,0.00022191,2]
[328555908,1717530639343,-500.0,0.00022191,2]
[328555909,1717530639353,-825.15,0.00022191,2]
[328555910,1717530639362,-500.0,0.00022191,2]
[328555911,1717530639371,-737.75,0.00022191,2]
[328555912,1717530639380,-500.0,0.00022191,2]
[328555913,1717530639390,-500.0,0.00022191,2]
[328555914,1717530639400,-500.0,0.00022191,2]
[328555915,1717530639409,-1142.22,0.00022191,2]
[328555916,1717530639419,-500.0,0.00022191,2]
[328555917,1717530639428,-500.0,0.00022191,2]
[328555918,1717530639437,-500.0,0.00022191,2]
[328555919,1717530639447,-500.0,0.00022191,2]
[328555920,1717530639457,-500.0,0.00022191,2]
[328555921,1717530639467,-500.0,0.00022191,2]
[328555922,1717530639477,-1023.49,0.00022191,2]
[328555923,1717530639487,-494.89262078,0.00022191,2]
[328555924,1717530639496,-500.0,0.00022191,2]
[328555925,1717530639505,-500.0,0.00022191,2]
[328555926,1717530639515,-500.0,0.00022191,2]
[328555927,1717530639524,-500.0,0.00022191,2]
[328555928,1717530639534,-500.0,0.00022191,2]
[328555929,1717530639544,-500.0,0.00022191,2]
[328555930,1717530639553,-500.0,0.00022191,2]
[328555931,1717530639563,-546.99,0.00022191,2]
[328555932,1717530639573,-830.94,0.00022191,2]
[328555933,1717530639583,-500.0,0.00022191,2]
[328555934,1717530639593,-617.68,0.00022191,2]
[328555935,1717530639604,-1525.05,0.00022191,2]
[328555936,1717530639614,-500.0,0.00022191,2]
[328555937,1717530639623,-500.0,0.00022191,2]
[328555938,1717530639634,-216.15,0.00022191,2]
[328555939,1717530639644,-500.0,0.00022191,2]
[328555940,1717530639653,-500.0,0.00022191,2]
[328555941,1717530639663,-200.0,0.00022191,2]
[328555942,1717530639673,-898.20027107,0.00022191,2]
[328555943,1717530639768,-2645.18972893,0.00022191,2]
[328555944,1717530639777,-500.0,0.00022191,2]
[328555945,1717530639786,-1809.1,0.00022191,2]
[328555946,1717530639795,-313.12,0.00022191,2]
[328555947,1717530639804,-350.03027107,0.00022191,2]
[328555948,1717530639833,-500.0,0.00022189,2]
[328555949,1717530639843,-500.0,0.00022189,2]
[328555950,1717530639853,-149.96972893,0.00022191,2]
[328555951,1717530639862,-500.0,0.00022191,2]
[328555952,1717530639871,-500.0,0.00022191,2]
[328555953,1717530639882,-500.0,0.00022191,2]
[328555954,1717530639892,-500.0,0.00022191,2]
[328555955,1717530639901,-500.0,0.00022191,2]
[328555956,1717530639910,-215.93027107,0.00022191,2]
[328555985,1717530643420,-560.0,0.00022191,2]
[328555986,1717530643467,-3827.77972893,0.00022191,2]
[328555987,1717530643477,-545.98179842,0.00022191,2]
[328555988,1717530643486,-4275.34,0.00022191,2]
[328555989,1717530643495,-500.0,0.00022191,2]
[328555990,1717530643505,-500.0,0.00022191,2]
[328555991,1717530643515,-1795.64,0.00022191,2]
[328555992,1717530643523,-588.32,0.00022191,2]
[328555994,1717530643532,-500.0,0.00022191,2]
[328555996,1717530643541,-500.0,0.00022191,2]
[328555998,1717530643550,-500.0,0.00022191,2]
[328556000,1717530643558,-500.0,0.00022191,2]
[328556002,1717530643566,-500.0,0.00022191,2]
[328556004,1717530643654,-3988.29697865,0.00022191,2]
[328556005,1717530643664,-461.88468196,0.00022191,2]
[328556006,1717530643673,-500.0,0.00022191,2]
[328556007,1717530643680,-500.0,0.00022191,2]
[328556008,1717530643689,-224.97896443,0.00022191,2]
[328556009,1717530643698,-12842.52695673,0.00022191,2]
[328556010,1717530643707,-609.95,0.00022191,2]
[328556011,1717530643715,-500.0,0.00022191,2]
[328556012,1717530643724,-500.0,0.00022191,2]
[328556013,1717530643732,-5476.69,0.00022191,2]
[328556014,1717530643740,-925.6,0.00022191,2]
[328556015,1717530643749,-500.0,0.00022191,2]
[328556016,1717530643758,-500.0,0.00022191,2]
[328556017,1717530643766,-574.58,0.00022191,2]
[328556018,1717530643774,-500.0,0.00022191,2]
[328556019,1717530643782,-500.0,0.00022191,2]
[328556020,1717530643790,-500.0,0.00022191,2]